[Event "Late-Titled-Tuesday-Blitz-October-24-2023"]
[Site "Chess.com"]
[Date "2023.10.24"]
[Round "2"]
[White "Zhigalko_Sergei"]
[Black "Makswolf200817"]
[Result "1-0"]
[WhiteElo "2963"]
[BlackElo "2615"]
[TimeControl "180+1"]
[EndTime "14:19:37 PDT"]
[Termination "Zhigalko_Sergei won by resignation"]

1. e4 {[%clk 0:03:00.9]} 1... c5 {[%clk 0:02:58.9]} 2. Nf3 {[%clk 0:03:00.5]}
2... d6 {[%clk 0:02:58.4]} 3. d4 {[%clk 0:03:00.7]} 3... cxd4 {[%clk 0:02:58.2]}
4. Qxd4 {[%clk 0:03:01.6]} 4... Nc6 {[%clk 0:02:57.7]} 5. Bb5 {[%clk 0:03:01.2]}
5... Bd7 {[%clk 0:02:57.9]} 6. Bxc6 {[%clk 0:03:01.8]} 6... Bxc6 {[%clk
0:02:58.3]} 7. Nc3 {[%clk 0:03:02.4]} 7... Nf6 {[%clk 0:02:48.2]} 8. Bg5 {[%clk
0:03:02.4]} 8... e6 {[%clk 0:02:44.6]} 9. O-O-O {[%clk 0:03:02.1]} 9... Be7
{[%clk 0:02:45]} 10. Rhe1 {[%clk 0:03:02.3]} 10... O-O {[%clk 0:02:43.9]} 11.
Kb1 {[%clk 0:03:02.6]} 11... Qa5 {[%clk 0:02:43.2]} 12. Qd2 {[%clk 0:03:02.7]}
12... Rfe8 {[%clk 0:02:28.6]} 13. Nd4 {[%clk 0:03:02.7]} 13... Rac8 {[%clk
0:02:27.1]} 14. f3 {[%clk 0:03:02.6]} 14... Bd7 {[%clk 0:02:12.4]} 15. Nd5
{[%clk 0:02:55.4]} 15... Qxd2 {[%clk 0:02:05.1]} 16. Nxe7+ {[%clk 0:02:55]}
16... Rxe7 {[%clk 0:02:06]} 17. Rxd2 {[%clk 0:02:50.3]} 17... Be8 {[%clk
0:01:52.8]} 18. Red1 {[%clk 0:02:35.3]} 18... Rec7 {[%clk 0:01:32.8]} 19. c3
{[%clk 0:02:21.7]} 19... Ba4 {[%clk 0:01:21.2]} 20. b3 {[%clk 0:02:10.1]} 20...
Bd7 {[%clk 0:01:17.7]} 21. Bxf6 {[%clk 0:02:07.3]} 21... gxf6 {[%clk 0:01:17.7]}
22. Ne2 {[%clk 0:02:06.6]} 22... d5 {[%clk 0:00:58.6]} 23. exd5 {[%clk 0:02:06]}
23... e5 {[%clk 0:00:59.3]} 24. Kb2 {[%clk 0:01:55.5]} 24... b5 {[%clk 0:00:59]}
25. g4 {[%clk 0:01:46.8]} 25... f5 {[%clk 0:00:53.2]} 26. d6 {[%clk 0:01:43]}
26... Rb7 {[%clk 0:00:46.4]} 27. gxf5 {[%clk 0:01:40]} 27... Bxf5 {[%clk
0:00:46.5]} 28. Ng3 {[%clk 0:01:39.8]} 28... Bg6 {[%clk 0:00:41.8]} 29. h4
{[%clk 0:01:32.9]} 29... f5 {[%clk 0:00:17.2]} 30. h5 {[%clk 0:01:15.4]} 30...
f4 {[%clk 0:00:17.5]} 31. hxg6 {[%clk 0:01:03.7]} 31... fxg3 {[%clk 0:00:17.3]}
32. Rg1 {[%clk 0:00:47.5]} 32... hxg6 {[%clk 0:00:16.5]} 33. Rxg3 {[%clk
0:00:47.8]} 33... Kf7 {[%clk 0:00:17.2]} 34. Rg4 {[%clk 0:00:20.5]} 34... Rd7
{[%clk 0:00:13.5]} 35. Rd5 {[%clk 0:00:14.8]} 35... Kf6 {[%clk 0:00:13.1]} 36.
Re4 {[%clk 0:00:13.9]} 36... Re8 {[%clk 0:00:12.5]} 37. f4 {[%clk 0:00:12.7]}
37... g5 {[%clk 0:00:04.6]} 38. fxe5+ {[%clk 0:00:08.8]} 38... Kf5 {[%clk
0:00:04.9]} 39. e6+ {[%clk 0:00:05.8]} 39... Kxe4 {[%clk 0:00:03.7]} 40. exd7
{[%clk 0:00:06.7]} 40... Rd8 {[%clk 0:00:04.2]} 41. Rxg5 {[%clk 0:00:06.7]}
41... a6 {[%clk 0:00:04.4]} 42. Rg7 {[%clk 0:00:04.5]} 42... Kd5 {[%clk
0:00:04.8]} 43. Ka3 {[%clk 0:00:04.8]} 43... Kxd6 {[%clk 0:00:04.7]} 44. Kb4
{[%clk 0:00:04.9]} 44... Kc6 {[%clk 0:00:03]} 45. Ka5 {[%clk 0:00:04.4]} 45...
Kb7 {[%clk 0:00:03.9]} 46. Re7 {[%clk 0:00:03.9]} 46... Ka7 {[%clk 0:00:04.1]}
47. Kb4 {[%clk 0:00:03.1]} 47... Kb6 {[%clk 0:00:04.4]} 48. Re6+ {[%clk
0:00:03.6]} 48... Kb7 {[%clk 0:00:05]} 49. Rd6 {[%clk 0:00:04]} 49... Kc7 {[%clk
0:00:05.1]} 50. Rxa6 {[%clk 0:00:04.2]} 50... Kxd7 {[%clk 0:00:03.8]} 51. Kxb5
{[%clk 0:00:04.4]} 1-0

[Event "Late-Titled-Tuesday-Blitz-October-24-2023"]
[Site "Chess.com"]
[Date "2023.10.24"]
[Round "2"]
[White "dosto07"]
[Black "RamyresCoelho"]
[Result "1-0"]
[WhiteElo "2519"]
[BlackElo "2299"]
[TimeControl "180+1"]
[EndTime "14:19:38 PDT"]
[Termination "dosto07 won by checkmate"]

1. e4 {[%clk 0:03:00.9]} 1... c5 {[%clk 0:02:55.7]} 2. Nf3 {[%clk 0:03:01]} 2...
d6 {[%clk 0:02:55.6]} 3. d4 {[%clk 0:02:59.2]} 3... cxd4 {[%clk 0:02:56.5]} 4.
Qxd4 {[%clk 0:02:59.4]} 4... Nc6 {[%clk 0:02:56.3]} 5. Bb5 {[%clk 0:02:59.3]}
5... Bd7 {[%clk 0:02:56.3]} 6. Bxc6 {[%clk 0:02:59.5]} 6... Bxc6 {[%clk
0:02:56.4]} 7. Nc3 {[%clk 0:02:59.8]} 7... e5 {[%clk 0:02:56.5]} 8. Qd3 {[%clk
0:02:59.5]} 8... Nf6 {[%clk 0:02:56.3]} 9. Bg5 {[%clk 0:02:59.5]} 9... Be7
{[%clk 0:02:56.5]} 10. Bxf6 {[%clk 0:02:59.6]} 10... Bxf6 {[%clk 0:02:57.4]} 11.
O-O-O {[%clk 0:02:59.7]} 11... Be7 {[%clk 0:02:57.1]} 12. Nd5 {[%clk 0:02:59.7]}
12... Bxd5 {[%clk 0:02:56.9]} 13. Qxd5 {[%clk 0:02:59.5]} 13... O-O {[%clk
0:02:57]} 14. Kb1 {[%clk 0:02:55.5]} 14... Qb6 {[%clk 0:02:56]} 15. Rd2 {[%clk
0:02:50.9]} 15... Rfc8 {[%clk 0:02:55.6]} 16. Qb3 {[%clk 0:02:50.1]} 16... Qxb3
{[%clk 0:02:55.1]} 17. axb3 {[%clk 0:02:49.6]} 17... a5 {[%clk 0:02:54.2]} 18.
Rhd1 {[%clk 0:02:45.5]} 18... a4 {[%clk 0:02:53.3]} 19. bxa4 {[%clk 0:02:43]}
19... Rxa4 {[%clk 0:02:54.2]} 20. Re2 {[%clk 0:02:37.7]} 20... Rca8 {[%clk
0:02:51.5]} 21. c3 {[%clk 0:02:37.4]} 21... Ra1+ {[%clk 0:02:50.6]} 22. Kc2
{[%clk 0:02:37.6]} 22... Rxd1 {[%clk 0:02:51.5]} 23. Kxd1 {[%clk 0:02:38.1]}
23... g6 {[%clk 0:02:51]} 24. Kc2 {[%clk 0:02:37]} 24... f5 {[%clk 0:02:49.9]}
25. Nd2 {[%clk 0:02:34.1]} 25... Kf7 {[%clk 0:02:48.4]} 26. f3 {[%clk
0:02:28.6]} 26... Ke6 {[%clk 0:02:47.4]} 27. Nc4 {[%clk 0:02:27.8]} 27... b5
{[%clk 0:02:42.3]} 28. Nb6 {[%clk 0:02:26.5]} 28... Ra6 {[%clk 0:02:38.8]} 29.
Nd5 {[%clk 0:02:26.2]} 29... Rc6 {[%clk 0:02:38.6]} 30. Re1 {[%clk 0:02:23.1]}
30... Rc5 {[%clk 0:02:37.1]} 31. Rd1 {[%clk 0:02:13.7]} 31... fxe4 {[%clk
0:02:34.8]} 32. fxe4 {[%clk 0:02:13.3]} 32... Rc4 {[%clk 0:02:33.1]} 33. Kd3
{[%clk 0:02:11.1]} 33... h5 {[%clk 0:02:27.6]} 34. Ra1 {[%clk 0:02:09.5]} 34...
Rc6 {[%clk 0:02:25.8]} 35. Ra7 {[%clk 0:02:06.1]} 35... Bd8 {[%clk 0:02:18.7]}
36. Rb7 {[%clk 0:02:05.5]} 36... Rc5 {[%clk 0:02:15.2]} 37. b4 {[%clk
0:02:04.8]} 37... Rc6 {[%clk 0:02:10.6]} 38. Rxb5 {[%clk 0:02:03.5]} 38... Ra6
{[%clk 0:02:11]} 39. Rb8 {[%clk 0:02:01.3]} 39... Kd7 {[%clk 0:02:07.5]} 40.
Rb7+ {[%clk 0:02:01.4]} 40... Ke6 {[%clk 0:02:07.1]} 41. Rg7 {[%clk 0:01:59.2]}
41... g5 {[%clk 0:02:06.3]} 42. b5 {[%clk 0:01:46.1]} 42... Ra1 {[%clk
0:02:04.8]} 43. Rg8 {[%clk 0:01:42.5]} 43... Kd7 {[%clk 0:01:56]} 44. Rg7+
{[%clk 0:01:33.8]} 44... Kc8 {[%clk 0:01:54.7]} 45. Kc4 {[%clk 0:01:19.7]} 45...
Ra2 {[%clk 0:01:51.8]} 46. b6 {[%clk 0:01:03.2]} 46... Rxg2 {[%clk 0:01:51.2]}
47. b7+ {[%clk 0:00:59.1]} 47... Kb8 {[%clk 0:01:50.9]} 48. Rg8 {[%clk
0:00:59.4]} 48... Kxb7 {[%clk 0:01:50.8]} 49. Rxd8 {[%clk 0:00:59.1]} 49... Rxh2
{[%clk 0:01:51.3]} 50. Rxd6 {[%clk 0:00:59]} 50... Re2 {[%clk 0:01:49]} 51. Kd3
{[%clk 0:00:56.6]} 51... Rf2 {[%clk 0:01:45.5]} 52. Rg6 {[%clk 0:00:54.8]} 52...
g4 {[%clk 0:01:44.6]} 53. Rg5 {[%clk 0:00:54.1]} 53... Rh2 {[%clk 0:01:45.1]}
54. Ne3 {[%clk 0:00:49.5]} 54... Rh3 {[%clk 0:01:43]} 55. Ke2 {[%clk 0:00:47.4]}
55... g3 {[%clk 0:01:40.1]} 56. Nf5 {[%clk 0:00:37.5]} 56... Rh2+ {[%clk
0:01:35.6]} 57. Kf3 {[%clk 0:00:35.7]} 57... g2 {[%clk 0:01:35.6]} 58. Rxg2
{[%clk 0:00:34.2]} 58... Rh3+ {[%clk 0:01:34.9]} 59. Rg3 {[%clk 0:00:34.2]}
59... Rh1 {[%clk 0:01:34.5]} 60. Ne3 {[%clk 0:00:32.8]} 60... Rc1 {[%clk
0:01:33.5]} 61. c4 {[%clk 0:00:32.1]} 61... Rh1 {[%clk 0:01:28.8]} 62. Kg2
{[%clk 0:00:28.8]} 62... Rh4 {[%clk 0:01:28]} 63. Kf3 {[%clk 0:00:26.7]} 63...
Rf4+ {[%clk 0:01:28.3]} 64. Ke2 {[%clk 0:00:24.8]} 64... h4 {[%clk 0:01:29.2]}
65. Rg4 {[%clk 0:00:23.9]} 65... Kc6 {[%clk 0:01:20.9]} 66. Rxf4 {[%clk
0:00:18.6]} 66... exf4 {[%clk 0:01:21.8]} 67. Ng4 {[%clk 0:00:14.1]} 67... Kc5
{[%clk 0:01:17.5]} 68. Kf3 {[%clk 0:00:14.4]} 68... Kxc4 {[%clk 0:01:17.8]} 69.
Kxf4 {[%clk 0:00:14.6]} 69... Kd4 {[%clk 0:01:18.1]} 70. Kf5 {[%clk 0:00:14.4]}
70... h3 {[%clk 0:01:17.6]} 71. e5 {[%clk 0:00:14.2]} 71... Kd5 {[%clk
0:01:18.5]} 72. Kf6 {[%clk 0:00:14.1]} 72... Ke4 {[%clk 0:01:18.6]} 73. e6
{[%clk 0:00:11]} 73... Kf4 {[%clk 0:01:18.8]} 74. Nf2 {[%clk 0:00:09.6]} 74...
Kg3 {[%clk 0:01:19.7]} 75. Nxh3 {[%clk 0:00:09.4]} 75... Kxh3 {[%clk 0:01:20.6]}
76. e7 {[%clk 0:00:09.8]} 76... Kg4 {[%clk 0:01:21.5]} 77. e8=Q {[%clk
0:00:10.4]} 77... Kf4 {[%clk 0:01:22.4]} 78. Qg6 {[%clk 0:00:10.8]} 78... Kf3
{[%clk 0:01:22.2]} 79. Qg5 {[%clk 0:00:11.3]} 79... Ke4 {[%clk 0:01:22.3]} 80.
Qe5+ {[%clk 0:00:10.9]} 80... Kf3 {[%clk 0:01:23.2]} 81. Kf5 {[%clk 0:00:10.5]}
81... Kg2 {[%clk 0:01:22.6]} 82. Qf4 {[%clk 0:00:10.4]} 82... Kh3 {[%clk
0:01:23.5]} 83. Qg4+ {[%clk 0:00:09]} 83... Kh2 {[%clk 0:01:23.4]} 84. Kf4
{[%clk 0:00:09.2]} 84... Kh1 {[%clk 0:01:23.5]} 85. Kf3 {[%clk 0:00:09.1]} 85...
Kh2 {[%clk 0:01:24.4]} 86. Qg5 {[%clk 0:00:09.1]} 86... Kh1 {[%clk 0:01:23.7]}
87. Qg2# {[%clk 0:00:06.3]} 1-0

[Event "Late-Titled-Tuesday-Blitz-October-24-2023"]
[Site "Chess.com"]
[Date "2023.10.24"]
[Round "2"]
[White "scandalgod"]
[Black "sari07"]
[Result "1-0"]
[WhiteElo "2511"]
[BlackElo "2256"]
[TimeControl "180+1"]
[EndTime "14:19:38 PDT"]
[Termination "scandalgod won by checkmate"]

1. d4 {[%clk 0:03:00.9]} 1... Nf6 {[%clk 0:02:59.6]} 2. c4 {[%clk 0:03:01.4]}
2... g6 {[%clk 0:02:59.4]} 3. Nc3 {[%clk 0:03:01]} 3... Bg7 {[%clk 0:02:59.8]}
4. e4 {[%clk 0:03:01.6]} 4... O-O {[%clk 0:03:00.3]} 5. f4 {[%clk 0:03:02.2]}
5... c5 {[%clk 0:02:59.2]} 6. d5 {[%clk 0:03:02.4]} 6... d6 {[%clk 0:02:56.8]}
7. Nf3 {[%clk 0:03:02.6]} 7... e6 {[%clk 0:02:49.9]} 8. Be2 {[%clk 0:03:01]}
8... exd5 {[%clk 0:02:49.4]} 9. cxd5 {[%clk 0:03:01.9]} 9... Re8 {[%clk
0:02:47.9]} 10. e5 {[%clk 0:03:00.6]} 10... dxe5 {[%clk 0:02:42.8]} 11. fxe5
{[%clk 0:03:01.5]} 11... Ng4 {[%clk 0:02:40.8]} 12. e6 {[%clk 0:03:01.6]} 12...
fxe6 {[%clk 0:02:35.3]} 13. Bg5 {[%clk 0:03:00.1]} 13... Qb6 {[%clk 0:02:17.5]}
14. Qd2 {[%clk 0:02:58.4]} 14... exd5 {[%clk 0:01:54.1]} 15. Nxd5 {[%clk
0:02:56.8]} 15... Qxb2 {[%clk 0:01:08]} 16. Qxb2 {[%clk 0:02:54.9]} 16... Bxb2
{[%clk 0:01:08.9]} 17. Rb1 {[%clk 0:02:54.5]} 17... Be6 {[%clk 0:00:50.6]} 18.
Rxb2 {[%clk 0:02:09]} 18... Bxd5 {[%clk 0:00:49.6]} 19. O-O {[%clk 0:02:08.3]}
19... Nd7 {[%clk 0:00:40.1]} 20. Rd1 {[%clk 0:02:06.9]} 20... Nb6 {[%clk
0:00:25]} 21. h3 {[%clk 0:01:59.3]} 21... Ne3 {[%clk 0:00:20.8]} 22. Bxe3 {[%clk
0:01:50.3]} 22... Rxe3 {[%clk 0:00:21.7]} 23. Rxd5 {[%clk 0:01:40.6]} 23... Nxd5
{[%clk 0:00:22.6]} 24. Bc4 {[%clk 0:01:39.7]} 24... Rd8 {[%clk 0:00:14.4]} 25.
Rd2 {[%clk 0:01:39.8]} 25... Kg7 {[%clk 0:00:11.8]} 26. Bxd5 {[%clk 0:01:29.9]}
26... b5 {[%clk 0:00:11.9]} 27. Kf2 {[%clk 0:01:29.7]} 27... Ra3 {[%clk
0:00:11.7]} 28. Ng5 {[%clk 0:01:27.5]} 28... Rc8 {[%clk 0:00:05]} 29. Ne4 {[%clk
0:01:21.9]} 29... c4 {[%clk 0:00:04.5]} 30. Be6 {[%clk 0:01:17.4]} 30... Rc7
{[%clk 0:00:02.9]} 31. Ng5 {[%clk 0:01:09.6]} 31... Rc5 {[%clk 0:00:02.6]} 32.
Bd5 {[%clk 0:01:07.7]} 32... c3 {[%clk 0:00:02.3]} 33. Ne6+ {[%clk 0:01:03.5]}
33... Kf6 {[%clk 0:00:02.8]} 34. Nxc5 {[%clk 0:01:03.3]} 34... cxd2 {[%clk
0:00:03.7]} 35. Ke2 {[%clk 0:01:02.8]} 35... Rc3 {[%clk 0:00:02.4]} 36. Ne4+
{[%clk 0:01:02]} 36... Ke5 {[%clk 0:00:03.3]} 37. Nxc3 {[%clk 0:01:02.6]} 37...
Kd4 {[%clk 0:00:03.9]} 38. Kxd2 {[%clk 0:01:02]} 38... b4 {[%clk 0:00:04.8]} 39.
Nb5+ {[%clk 0:01:01.1]} 39... Kxd5 {[%clk 0:00:05.7]} 40. Nxa7 {[%clk
0:01:01.2]} 40... Kc4 {[%clk 0:00:06.1]} 41. Kc2 {[%clk 0:01:01]} 41... b3+
{[%clk 0:00:07]} 42. axb3+ {[%clk 0:01:00.8]} 42... Kd4 {[%clk 0:00:07.9]} 43.
Nc6+ {[%clk 0:01:00.8]} 43... Ke3 {[%clk 0:00:08.8]} 44. Nd8 {[%clk 0:00:52.5]}
44... Kf2 {[%clk 0:00:09.7]} 45. Ne6 {[%clk 0:00:52.9]} 45... Kxg2 {[%clk
0:00:09.7]} 46. Ng5 {[%clk 0:00:53.1]} 46... h6 {[%clk 0:00:08.9]} 47. Nf7
{[%clk 0:00:52.4]} 47... h5 {[%clk 0:00:08.5]} 48. b4 {[%clk 0:00:51.3]} 48...
Kxh3 {[%clk 0:00:08]} 49. b5 {[%clk 0:00:51.7]} 49... h4 {[%clk 0:00:08.4]} 50.
b6 {[%clk 0:00:51.8]} 50... Kg2 {[%clk 0:00:09.3]} 51. b7 {[%clk 0:00:51.3]}
51... h3 {[%clk 0:00:10.2]} 52. b8=Q {[%clk 0:00:48.4]} 52... h2 {[%clk
0:00:11.1]} 53. Qb7+ {[%clk 0:00:48.3]} 53... Kg1 {[%clk 0:00:10.9]} 54. Qb6+
{[%clk 0:00:47.2]} 54... Kf1 {[%clk 0:00:10.2]} 55. Qf6+ {[%clk 0:00:41.9]}
55... Kg1 {[%clk 0:00:10.1]} 56. Qxg6+ {[%clk 0:00:42.3]} 56... Kf1 {[%clk
0:00:09.6]} 57. Qf5+ {[%clk 0:00:41.5]} 57... Kg1 {[%clk 0:00:09.8]} 58. Qg4+
{[%clk 0:00:39.7]} 58... Kf1 {[%clk 0:00:09.5]} 59. Qd1+ {[%clk 0:00:29.1]}
59... Kg2 {[%clk 0:00:09.1]} 60. Qe2+ {[%clk 0:00:25.5]} 60... Kg1 {[%clk
0:00:05.9]} 61. Ng5 {[%clk 0:00:23.7]} 61... Kh1 {[%clk 0:00:02.2]} 62. Qf1#
{[%clk 0:00:22.7]} 1-0

[Event "Late-Titled-Tuesday-Blitz-October-24-2023"]
[Site "Chess.com"]
[Date "2023.10.24"]
[Round "2"]
[White "tylityli"]
[Black "SaqoChess_Twitch"]
[Result "0-1"]
[WhiteElo "2327"]
[BlackElo "2552"]
[TimeControl "180+1"]
[EndTime "14:19:40 PDT"]
[Termination "SaqoChess_Twitch won on time"]

1. d4 {[%clk 0:03:00.9]} 1... d5 {[%clk 0:02:59.7]} 2. c4 {[%clk 0:03:00.4]}
2... e6 {[%clk 0:02:58.7]} 3. Nc3 {[%clk 0:02:59.8]} 3... Nf6 {[%clk 0:02:59.4]}
4. cxd5 {[%clk 0:02:59.7]} 4... exd5 {[%clk 0:03:00.1]} 5. Bg5 {[%clk
0:02:59.4]} 5... c6 {[%clk 0:03:01]} 6. e3 {[%clk 0:02:59.5]} 6... Nbd7 {[%clk
0:03:01.7]} 7. Bd3 {[%clk 0:02:59.8]} 7... Be7 {[%clk 0:03:00.3]} 8. Qc2 {[%clk
0:02:59.9]} 8... O-O {[%clk 0:03:01]} 9. Nge2 {[%clk 0:03:00.3]} 9... Re8 {[%clk
0:03:01.2]} 10. O-O {[%clk 0:03:00.3]} 10... Nf8 {[%clk 0:03:01.9]} 11. f3
{[%clk 0:03:00.1]} 11... h6 {[%clk 0:03:01]} 12. Bh4 {[%clk 0:02:59.8]} 12...
Ne6 {[%clk 0:03:00.3]} 13. Bf2 {[%clk 0:02:59.5]} 13... Bd6 {[%clk 0:02:59.7]}
14. Kh1 {[%clk 0:02:59.4]} 14... Ng5 {[%clk 0:02:58.9]} 15. Bg1 {[%clk
0:02:51.2]} 15... a5 {[%clk 0:02:58.5]} 16. e4 {[%clk 0:02:38.1]} 16... dxe4
{[%clk 0:02:59.4]} 17. fxe4 {[%clk 0:02:38.2]} 17... Ng4 {[%clk 0:02:59.1]} 18.
e5 {[%clk 0:02:35.7]} 18... Bc7 {[%clk 0:02:57.1]} 19. h3 {[%clk 0:02:20]} 19...
Nxe5 {[%clk 0:02:57]} 20. dxe5 {[%clk 0:02:17.3]} 20... Rxe5 {[%clk 0:02:57.7]}
21. Bh2 {[%clk 0:02:11.6]} 21... Re3 {[%clk 0:02:56.1]} 22. Bxc7 {[%clk
0:02:09.2]} 22... Qxc7 {[%clk 0:02:57]} 23. Bf5 {[%clk 0:02:06.2]} 23... g6
{[%clk 0:02:49.9]} 24. Bxc8 {[%clk 0:01:49.5]} 24... Qxc8 {[%clk 0:02:50.8]} 25.
Nf4 {[%clk 0:01:45.8]} 25... Qe8 {[%clk 0:02:43.4]} 26. Rad1 {[%clk 0:01:38.4]}
26... a4 {[%clk 0:02:36.3]} 27. a3 {[%clk 0:01:37.6]} 27... b5 {[%clk
0:02:31.1]} 28. Qd2 {[%clk 0:01:37.5]} 28... Qe5 {[%clk 0:02:15.3]} 29. Rde1
{[%clk 0:01:21.7]} 29... Rxe1 {[%clk 0:02:15.5]} 30. Rxe1 {[%clk 0:01:20.6]}
30... Qf6 {[%clk 0:02:16.1]} 31. Qe3 {[%clk 0:01:09.6]} 31... Rd8 {[%clk
0:02:13]} 32. Nd3 {[%clk 0:01:04]} 32... Ne6 {[%clk 0:02:05.1]} 33. Qe5 {[%clk
0:00:58.8]} 33... Qxe5 {[%clk 0:01:55]} 34. Nxe5 {[%clk 0:00:59.7]} 34... Rd2
{[%clk 0:01:54.9]} 35. Re2 {[%clk 0:01:00]} 35... Rd6 {[%clk 0:01:51.6]} 36. g3
{[%clk 0:00:56.3]} 36... Kg7 {[%clk 0:01:46.3]} 37. Kg2 {[%clk 0:00:55.6]} 37...
f6 {[%clk 0:01:44.5]} 38. Ne4 {[%clk 0:00:51.7]} 38... Rd4 {[%clk 0:01:18.9]}
39. Nxc6 {[%clk 0:00:49.2]} 39... Rc4 {[%clk 0:01:19.5]} 40. Nb4 {[%clk
0:00:45.4]} 40... Nd4 {[%clk 0:01:18.3]} 41. Rd2 {[%clk 0:00:38.5]} 41... Nc6
{[%clk 0:00:53]} 42. Rd7+ {[%clk 0:00:34.8]} 42... Kf8 {[%clk 0:00:52.4]} 43.
Rc7 {[%clk 0:00:21.5]} 43... Rxe4 {[%clk 0:00:44.7]} 44. Rxc6 {[%clk 0:00:20.5]}
44... Re2+ {[%clk 0:00:41.6]} 45. Kf3 {[%clk 0:00:20.8]} 45... Rxb2 {[%clk
0:00:42.5]} 46. Rxf6+ {[%clk 0:00:20]} 46... Kg7 {[%clk 0:00:43.1]} 47. Rb6
{[%clk 0:00:19.3]} 47... Rb3+ {[%clk 0:00:44]} 48. Kg4 {[%clk 0:00:19]} 48...
Rxa3 {[%clk 0:00:44.8]} 49. Rxb5 {[%clk 0:00:18.6]} 49... Rb3 {[%clk 0:00:45.1]}
50. Rb7+ {[%clk 0:00:12.2]} 50... Kg8 {[%clk 0:00:45.1]} 51. Rb8+ {[%clk
0:00:11.6]} 51... Kf7 {[%clk 0:00:45.3]} 52. Rb7+ {[%clk 0:00:12.2]} 52... Ke6
{[%clk 0:00:45.2]} 53. Rb6+ {[%clk 0:00:12.3]} 53... Kd7 {[%clk 0:00:43.8]} 54.
Nd5 {[%clk 0:00:11]} 54... h5+ {[%clk 0:00:32.4]} 55. Kh4 {[%clk 0:00:09.8]}
55... g5+ {[%clk 0:00:31.1]} 56. Kxh5 {[%clk 0:00:05.4]} 56... Rxg3 {[%clk
0:00:31.8]} 57. Ra6 {[%clk 0:00:04.4]} 57... a3 {[%clk 0:00:31.7]} 58. h4 {[%clk
0:00:03.1]} 58... gxh4 {[%clk 0:00:28.8]} 59. Kxh4 {[%clk 0:00:03.5]} 59... Rb3
{[%clk 0:00:29]} 60. Kg4 {[%clk 0:00:03.3]} 60... Kc8 {[%clk 0:00:29.1]} 61. Kf4
{[%clk 0:00:03.5]} 61... Kb7 {[%clk 0:00:29.8]} 62. Ra4 {[%clk 0:00:03.5]} 62...
Kc6 {[%clk 0:00:29.8]} 63. Ke4 {[%clk 0:00:03.6]} 63... Kb5 {[%clk 0:00:28.5]}
64. Ra8 {[%clk 0:00:02.2]} 64... Rh3 {[%clk 0:00:28.2]} 0-1

[Event "Late-Titled-Tuesday-Blitz-October-24-2023"]
[Site "Chess.com"]
[Date "2023.10.24"]
[Round "2"]
[White "Ali_rastbod"]
[Black "DanylaBagrov"]
[Result "1-0"]
[WhiteElo "2751"]
[BlackElo "2531"]
[TimeControl "180+1"]
[EndTime "14:19:48 PDT"]
[Termination "Ali_rastbod won by resignation"]

1. e4 {[%clk 0:02:56.4]} 1... d6 {[%clk 0:02:59.4]} 2. d4 {[%clk 0:02:51.8]}
2... Nf6 {[%clk 0:02:59.9]} 3. Nc3 {[%clk 0:02:52.6]} 3... e5 {[%clk 0:03:00.4]}
4. dxe5 {[%clk 0:02:48.8]} 4... dxe5 {[%clk 0:03:01.3]} 5. Qxd8+ {[%clk
0:02:49.1]} 5... Kxd8 {[%clk 0:03:02.2]} 6. Bc4 {[%clk 0:02:49.4]} 6... Ke8
{[%clk 0:03:02.5]} 7. Nf3 {[%clk 0:02:48.6]} 7... Bd6 {[%clk 0:03:01.6]} 8. Bg5
{[%clk 0:02:47.9]} 8... Nbd7 {[%clk 0:03:00.9]} 9. O-O-O {[%clk 0:02:48.1]} 9...
h6 {[%clk 0:02:52.2]} 10. Bh4 {[%clk 0:02:47.9]} 10... g5 {[%clk 0:02:38.7]} 11.
Bg3 {[%clk 0:02:47.7]} 11... Nh5 {[%clk 0:02:34]} 12. Nb5 {[%clk 0:02:41]} 12...
Ke7 {[%clk 0:02:29.7]} 13. Nd2 {[%clk 0:02:09]} 13... Ndf6 {[%clk 0:02:03.8]}
14. f3 {[%clk 0:02:08.1]} 14... Nf4 {[%clk 0:02:02.4]} 15. Bf1 {[%clk 0:01:40]}
15... Be6 {[%clk 0:01:46.4]} 16. Bf2 {[%clk 0:01:35]} 16... a6 {[%clk
0:01:42.8]} 17. Nxd6 {[%clk 0:01:32.3]} 17... cxd6 {[%clk 0:01:43.7]} 18. g3
{[%clk 0:01:32.2]} 18... Ng6 {[%clk 0:01:37.2]} 19. Nc4 {[%clk 0:01:27.2]} 19...
Rhd8 {[%clk 0:01:34]} 20. Nb6 {[%clk 0:01:22.2]} 20... Rab8 {[%clk 0:01:33.1]}
21. Nd5+ {[%clk 0:01:19.4]} 21... Nxd5 {[%clk 0:01:28.4]} 22. exd5 {[%clk
0:01:20.3]} 22... Bd7 {[%clk 0:01:29]} 23. Bb6 {[%clk 0:01:17.3]} 23... Rdc8
{[%clk 0:01:28.1]} 24. b3 {[%clk 0:01:14.6]} 24... f5 {[%clk 0:01:22.1]} 25. Kb2
{[%clk 0:01:14.3]} 25... Be8 {[%clk 0:01:15.5]} 26. c4 {[%clk 0:01:07.6]} 26...
Nf8 {[%clk 0:01:15]} 27. c5 {[%clk 0:01:01]} 27... Nd7 {[%clk 0:00:55.2]} 28.
cxd6+ {[%clk 0:01:00.4]} 28... Kxd6 {[%clk 0:00:56.1]} 29. Be3 {[%clk
0:01:00.6]} 29... Bf7 {[%clk 0:00:50.6]} 30. h4 {[%clk 0:00:48.6]} 30... f4
{[%clk 0:00:50.8]} 31. gxf4 {[%clk 0:00:41.1]} 31... gxf4 {[%clk 0:00:49.7]} 32.
Ba7 {[%clk 0:00:41.3]} 32... Ra8 {[%clk 0:00:49.4]} 33. Bf2 {[%clk 0:00:41.6]}
33... Nf6 {[%clk 0:00:43.3]} 34. Bh3 {[%clk 0:00:36.4]} 34... Rg8 {[%clk
0:00:34.2]} 35. Rd2 {[%clk 0:00:30.5]} 35... Nxd5 {[%clk 0:00:26.8]} 36. Rhd1
{[%clk 0:00:30.2]} 36... b5 {[%clk 0:00:17.7]} 37. Bf5 {[%clk 0:00:28.5]} 37...
Rad8 {[%clk 0:00:10.7]} 38. Bb6 {[%clk 0:00:25.5]} 38... Rb8 {[%clk 0:00:11.3]}
39. Ba7 {[%clk 0:00:25.5]} 39... Rb7 {[%clk 0:00:11.2]} 40. Bf2 {[%clk
0:00:26.1]} 40... Kc6 {[%clk 0:00:11]} 41. Be4 {[%clk 0:00:26]} 41... Rd8 {[%clk
0:00:11.5]} 42. Rg1 {[%clk 0:00:19.8]} 42... Rbd7 {[%clk 0:00:09.9]} 43. Rc1+
{[%clk 0:00:14.5]} 43... Kb7 {[%clk 0:00:07.5]} 44. Rc5 {[%clk 0:00:12.5]} 44...
Kb8 {[%clk 0:00:07.5]} 45. Rc6 {[%clk 0:00:12.5]} 45... Nc7 {[%clk 0:00:06.3]}
46. Rb6+ {[%clk 0:00:11.3]} 46... Kc8 {[%clk 0:00:04.2]} 47. Bb7+ {[%clk
0:00:10.8]} 47... Kb8 {[%clk 0:00:04.4]} 48. Bc6+ {[%clk 0:00:11.7]} 48... Kc8
{[%clk 0:00:04.7]} 49. Bxd7+ {[%clk 0:00:10.5]} 49... Rxd7 {[%clk 0:00:05.6]}
50. Rb8+ {[%clk 0:00:10.1]} 50... Kxb8 {[%clk 0:00:05.1]} 51. Rxd7 {[%clk
0:00:11]} 51... Bd5 {[%clk 0:00:03.6]} 52. Bb6 {[%clk 0:00:09.8]} 52... Bxf3
{[%clk 0:00:03.2]} 53. Bxc7+ {[%clk 0:00:08.9]} 53... Kc8 {[%clk 0:00:03.7]} 54.
Re7 {[%clk 0:00:09.7]} 54... e4 {[%clk 0:00:03.4]} 55. Bxf4 {[%clk 0:00:10.3]}
55... Kd8 {[%clk 0:00:03.6]} 56. Re5 {[%clk 0:00:10]} 56... Kd7 {[%clk
0:00:04.1]} 57. Bxh6 {[%clk 0:00:10.3]} 57... Kd6 {[%clk 0:00:04.5]} 58. Bf4
{[%clk 0:00:11.2]} 58... Kc6 {[%clk 0:00:05.2]} 59. Kc3 {[%clk 0:00:11.7]} 59...
Bg2 {[%clk 0:00:05.8]} 60. b4 {[%clk 0:00:12.2]} 60... Bh1 {[%clk 0:00:06.3]}
61. a3 {[%clk 0:00:13.1]} 1-0